bitfinex/quotes_ETHUSD_20241124
["timestamp","ask_amount","ask_price","bid_price","bid_amount"]
[1732411995841,3.57384887,3416.8,3416.2,2.9341]
[1732411996264,3.0,3416.7,3416.3,0.01466251]
[1732411996468,3.0,3416.7,3416.4,2.934]
[1732411996672,2.80474887,3416.8,3416.4,2.934]
[1732411996979,3.08522376,3416.8,3416.4,2.934]
[1732411997764,0.7619,3416.7,3416.4,2.934]
[1732411998344,0.7984877,3416.7,3416.4,2.934]
[1732411998785,3.7984877,3416.7,3416.4,2.934]
[1732411998955,0.7619,3416.6,3416.4,2.934]
[1732411999155,0.72495966,3416.5,3416.4,2.934]
[1732412000291,0.68837115,3416.5,3416.4,2.934]
[1732412003281,0.72495824,3416.5,3416.4,2.934]
[1732412003550,1.45027115,3416.5,3416.4,2.934]
[1732412004399,0.71589489,3416.5,3416.4,2.934]
[1732412005391,0.02752374,3416.5,3416.4,2.934]
[1732412006194,3.7619,3416.7,3416.4,2.934]
[1732412006663,0.02753556,3416.6,3416.4,2.934]
[1732412008662,0.02753556,3416.6,3416.5,0.8008]
[1732412008863,0.02753556,3416.6,3416.5,3.7347]
[1732412009483,2.80474887,3417.2,3416.5,3.7347]
[1732412009799,0.02759463,3417.1,3416.5,3.7347]
[1732412010357,2.80474887,3416.8,3416.5,3.7347]
[1732412010809,0.02722071,3416.7,3416.5,3.7347]
[1732412011094,3.59464887,3416.8,3416.5,2.9339]
[1732412011255,0.02735386,3416.6,3416.5,2.9339]
[1732412011977,3.59464887,3416.8,3416.5,2.9339]
[1732412012161,0.02735386,3416.6,3416.5,2.9339]
[1732412012368,0.66585901,3416.6,3416.5,2.9339]
[1732412012587,0.69321287,3416.6,3416.5,2.9339]
[1732412013497,0.96597116,3416.6,3416.5,2.9339]
[1732412016616,1.40288217,3416.6,3416.5,2.9339]
[1732412017878,2.20368217,3416.6,3416.5,2.9339]
[1732412018900,1.53060433,3416.6,3416.5,2.9339]
[1732412019106,2.24106497,3416.6,3416.5,2.27664637]
[1732412019306,5.24106497,3416.6,3416.5,2.27664637]
[1732412019481,1.49401287,3416.6,3416.5,2.27664637]
[1732412019680,2.20450021,3416.6,3416.5,2.27664637]
[1732412020698,2.24108917,3416.6,3416.5,2.27664637]
[1732412025172,2.20450021,3416.6,3416.5,2.27664637]
[1732412025374,2.24109046,3416.6,3416.5,2.27664637]
[1732412026199,2.24109046,3416.6,3416.5,1.60324637]
[1732412026587,2.20450021,3416.6,3416.5,1.60324637]
[1732412028883,2.20398098,3416.6,3416.5,1.60324637]
[1732412032583,2.20380838,3416.6,3416.5,1.60324637]
[1732412033014,2.21614143,3416.6,3416.5,1.60324637]
[1732412033717,2.25273397,3416.6,3416.5,1.60324637]
[1732412035412,2.21614143,3416.6,3416.5,1.60324637]
[1732412036387,2.21603462,3416.6,3416.5,1.60324637]
[1732412040055,1.50634592,3416.6,3416.5,1.60324637]
[1732412040260,2.21635408,3416.6,3416.5,1.60324637]
[1732412041260,2.21635408,3416.6,3416.5,1.08564638]
[1732412041429,2.25294782,3416.6,3416.5,0.42842134]
[1732412042551,2.25294782,3416.6,3416.5,0.19392135]
[1732412042757,2.25360361,3416.6,3416.5,0.19392135]
[1732412043562,2.21700987,3416.6,3416.5,0.19392135]
[1732412044167,1.41620987,3416.6,3416.5,0.19392135]
[1732412046167,1.14287758,3416.6,3416.5,0.19392135]
[1732412046373,1.41688301,3416.6,3416.5,0.19392135]
[1732412046557,1.49724592,3416.6,3416.5,0.19392135]
[1732412046760,2.20858299,3416.6,3416.5,0.19392135]
[1732412048407,2.20858299,3416.6,3415.6,0.8159]
[1732412048681,2.80474887,3415.9,3415.6,0.8159]
[1732412048881,0.27359118,3415.8,3415.6,0.8159]
[1732412049083,0.27359118,3415.7,3415.6,0.8159]
[1732412049302,0.31313011,3415.7,3415.6,0.8159]
[1732412049740,0.03953893,3415.7,3415.6,0.8159]
[1732412050146,0.43778968,3416.2,3415.6,0.8159]
[1732412050347,0.03954663,3415.7,3415.6,0.8159]
[1732412050586,3.0,3416.2,3415.6,0.8159]
[1732412050869,0.03954663,3415.7,3415.6,0.8159]
[1732412051074,3.0,3416.2,3415.6,0.8159]
[1732412051285,0.03954663,3415.7,3415.6,0.8159]
[1732412051442,3.0,3416.2,3415.6,0.8159]
[1732412051642,0.27354738,3416.1,3415.6,0.8159]
[1732412051847,0.27354738,3416.0,3415.6,0.8159]
[1732412052048,0.03959983,3416.0,3415.6,0.8159]
[1732412052478,0.03958209,3415.9,3415.6,0.8159]
[1732412052891,0.03960286,3415.8,3415.6,0.8159]
[1732412053098,3.0,3416.2,3415.6,0.8159]
[1732412053296,0.27350603,3416.1,3415.6,0.8159]
[1732412053447,0.03965606,3416.1,3415.6,0.8159]
[1732412054349,0.27347182,3416.0,3415.6,0.8159]
[1732412054555,0.03965606,3416.1,3415.6,0.8159]
[1732412054914,3.0,3416.2,3415.6,0.8159]
[1732412054915,2.84436754,3415.9,3415.6,0.8159]
[1732412055051,2.80474887,3415.9,3415.6,0.8159]
[1732412055390,0.03960671,3415.8,3415.6,0.8159]
[1732412056554,0.27346017,3415.7,3415.6,0.8159]
[1732412056893,0.31304915,3415.7,3415.6,0.8159]
[1732412057489,0.31307321,3415.7,3415.6,0.8159]
[1732412057693,0.03958898,3415.7,3415.6,0.8159]
[1732412057889,0.27348131,3415.7,3415.6,0.8159]
[1732412058091,0.31307029,3415.7,3415.6,0.8159]
[1732412058534,0.62851178,3415.7,3414.3,0.01468483]
[1732412058740,1.23226017,3414.9,3414.4,0.7734]
[1732412059211,0.04367559,3414.8,3414.4,0.72348181]
[1732412060528,0.04367559,3414.8,3413.8,0.55]
[1732412060831,2.80297853,3415.4,3414.0,0.55]
[1732412061034,0.04352104,3414.7,3414.1,0.11469082]
[1732412061245,2.80297853,3415.8,3414.4,0.55]
[1732412061435,0.27327853,3415.7,3414.5,0.01468226]
[1732412061633,0.04371815,3415.7,3414.5,0.01468226]
[1732412061835,0.2732902,3415.6,3414.5,0.01468226]
[1732412062135,0.2732902,3415.5,3414.5,0.01468226]
[1732412062438,0.04367828,3415.4,3414.8,0.7734]
[1732412062595,0.04367828,3415.4,3414.9,0.78808244]
[1732412062936,0.04365857,3415.3,3414.9,0.78808244]
[1732412063098,2.80297853,3415.8,3414.9,0.78808244]
[1732412063299,0.31708024,3415.7,3414.9,0.78808244]
[1732412063498,0.27328507,3415.6,3414.9,0.78808244]
[1732412063720,0.04375575,3415.5,3414.9,0.7734]
[1732412064133,2.80297853,3415.8,3414.9,0.7734]
[1732412064339,0.31707005,3415.7,3414.9,0.7734]
[1732412064635,2.80297853,3415.4,3414.9,0.7734]
[1732412065028,0.31702946,3415.3,3414.9,0.7734]
[1732412065232,0.27331312,3415.2,3414.9,0.7734]
[1732412065572,0.04362771,3415.1,3414.9,0.7734]
[1732412065962,2.80297853,3415.4,3414.9,0.7734]
[1732412066130,0.043608,3415.0,3414.9,0.7734]
[1732412066332,3.13065848,3415.4,3414.9,0.7734]
[1732412066531,0.3168825,3415.3,3414.9,0.7734]
[1732412066733,0.27321537,3415.2,3414.9,0.7734]
[1732412067086,0.04362771,3415.1,3414.9,0.7734]
[1732412067380,3.13065848,3415.4,3414.9,0.7734]
[1732412067563,0.043608,3415.0,3414.9,0.7734]
[1732412067749,2.80297853,3415.4,3414.9,0.7734]
[1732412067949,0.3168277,3415.3,3414.9,0.7734]
[1732412068246,0.27316057,3415.2,3414.9,0.7734]
[1732412068448,0.31680799,3415.2,3414.9,0.7734]
[1732412068653,2.80297853,3415.0,3414.1,0.7734]
[1732412068850,2.80297853,3415.0,3414.2,0.01470127]
[1732412069173,0.04358828,3414.9,3414.3,0.7734]
[1732412070604,0.04358828,3414.9,3414.4,0.01469992]
[1732412070906,0.04358828,3414.9,3414.5,0.7734]
[1732412071461,0.04358828,3414.9,3414.7,0.7527]
[1732412071711,0.04358828,3414.9,3414.8,0.76739408]
[1732412072004,0.04355617,3414.9,3414.8,0.76739408]
[1732412072205,0.04355617,3414.9,3414.8,0.7527]
[1732412072699,3.0,3415.7,3414.9,0.7527]
[1732412072903,3.0,3415.7,3415.1,0.7527]
[1732412073112,0.04361497,3415.6,3415.2,2.9281]
[1732412073264,0.04361497,3415.6,3415.3,0.7527]
[1732412073470,0.04361497,3415.6,3415.4,2.9279]
[1732412074813,2.80297853,3415.8,3415.5,0.7527]
[1732412075100,2.80297853,3415.8,3415.6,2.9277]
[1732412075266,0.04363468,3415.7,3415.6,2.9277]
[1732412075708,2.80297853,3415.8,3415.6,2.9277]
[1732412075915,0.04363468,3415.7,3415.6,2.9277]
[1732412076514,3.0,3416.1,3415.7,0.7502]
[1732412076870,3.0,3416.1,3415.8,2.9276]
[1732412079333,0.04385211,3416.0,3415.8,2.9276]
[1732412079886,0.04385211,3416.0,3415.8,3.29538]
[1732412080120,0.04385211,3416.0,3415.9,0.7502]
[1732412080325,0.04385211,3416.0,3415.9,3.6777]
[1732412080654,3.0,3416.5,3415.9,3.6777]
[1732412080853,0.04385211,3416.0,3415.9,3.6777]
[1732412081057,3.0,3416.5,3415.9,4.04693683]
[1732412081251,0.04385211,3416.0,3415.9,4.04693683]
[1732412081460,3.0,3416.5,3415.9,3.6777]
[1732412082269,0.04393091,3416.4,3415.9,3.6777]
[1732412082952,0.04393091,3416.4,3415.9,2.9275]
[1732412083267,0.04393091,3416.4,3416.0,0.7502]
[1732412083417,2.80297853,3416.6,3416.1,2.94196785]
[1732412083617,0.04391121,3416.3,3416.2,0.7502]
[1732412083910,2.80297853,3416.6,3416.2,3.6774]
[1732412084254,0.03319404,3416.5,3416.3,0.7502]
[1732412084459,0.03319404,3416.5,3416.4,2.9271]
[1732412086421,3.03319404,3416.5,3416.4,2.9271]
[1732412087353,0.03319404,3416.5,3416.4,2.9271]
[1732412087557,0.03319404,3416.5,3416.4,3.97001]
[1732412087785,0.0399849,3416.5,3416.4,3.97001]
[1732412087953,3.0,3416.9,3416.4,3.97001]
[1732412088157,0.04003807,3416.8,3416.4,3.6773]
[1732412088772,0.04003807,3416.8,3416.5,0.7502]
[1732412088971,2.80297853,3417.0,3416.6,2.9269]
[1732412089168,0.03641436,3416.9,3416.6,2.9269]
[1732412089376,0.03641436,3416.9,3416.6,3.29461]
[1732412094279,0.03641436,3416.9,3416.6,2.9269]
[1732412094944,0.03641436,3416.9,3416.7,0.765]
[1732412095150,2.80297853,3417.5,3416.7,0.77965535]
[1732412095392,0.0364949,3417.4,3416.8,2.9267]
[1732412097892,0.0364949,3417.4,3416.9,0.8258]
[1732412098091,0.0364949,3417.4,3417.0,2.9265]
[1732412098630,2.80297853,3417.1,3417.0,2.9265]
[1732412098815,5.80297853,3417.1,3417.0,2.9265]
[1732412099025,5.83398517,3417.1,3417.0,2.9265]
[1732412100128,2.83398517,3417.1,3417.0,2.9265]
[1732412101440,3.19296369,3417.1,3417.0,2.9265]
[1732412102536,2.83398517,3417.1,3417.0,2.9265]
[1732412102915,0.03100664,3417.1,3417.0,2.9265]
[1732412103247,0.7558,3417.5,3417.0,2.9265]
[1732412103453,0.03098593,3417.1,3417.0,2.9265]
[1732412103658,2.80297853,3417.2,3417.0,2.9265]
[1732412103944,0.02877264,3417.1,3417.0,2.9265]
[1732412105539,0.03661972,3417.1,3417.0,2.9265]
[1732412107231,0.0335761,3417.1,3417.0,2.9265]
[1732412107760,2.81334024,3417.4,3417.0,2.9265]
[1732412108046,0.27292709,3417.3,3417.0,2.9265]
[1732412108356,0.03361524,3417.3,3417.0,2.9265]
[1732412108848,0.03361524,3417.3,3417.1,0.8258]
[1732412109353,0.03361524,3417.3,3417.2,2.9264]
[1732412109861,0.03361524,3417.3,3417.2,4.12742]
[1732412110210,0.01036171,3417.4,3417.3,0.8258]
[1732412110416,0.03918742,3417.4,3417.3,3.76673912]
[1732412110712,0.03918742,3417.4,3417.3,4.18093503]
[1732412111038,0.01036171,3417.4,3417.3,4.18093503]
[1732412112549,0.03739008,3417.4,3417.3,4.18093503]
[1732412112747,0.01036171,3417.4,3417.3,4.18093503]
[1732412113355,0.03740931,3417.4,3417.3,4.18093503]
[1732412113557,0.01036171,3417.4,3417.3,4.18093503]
[1732412113758,0.03741571,3417.4,3417.3,4.18093503]
[1732412114080,0.03741571,3417.4,3417.3,4.16629591]
[1732412114440,0.03741571,3417.4,3417.3,2.9263]
[1732412114982,0.31017886,3417.4,3417.3,2.9263]
[1732412123370,0.34675858,3417.4,3417.3,2.9263]
[1732412123668,0.31017886,3417.4,3417.3,2.9263]
[1732412124001,6.91948861,3417.4,3417.3,2.9263]
[1732412124209,8.37547645,3417.4,3417.3,2.9263]
[1732412125003,6.55932778,3417.4,3417.3,2.9263]
[1732412125307,3.12288861,3417.4,3417.3,3.7112]
[1732412125511,2.85012546,3417.4,3417.3,3.7112]
[1732412129197,2.85012546,3417.4,3417.3,2.9263]
[1732412130323,2.85012546,3417.4,3417.3,3.29742]
[1732412130502,2.85012546,3417.4,3417.3,4.08232]
[1732412132532,2.89535675,3417.4,3417.3,4.08232]
[1732412132702,0.09237822,3417.4,3417.3,4.08232]
[1732412141132,0.01036171,3417.4,3417.3,4.08232]
[1732412141615,0.09223209,3417.4,3417.3,4.08232]
[1732412145317,0.01036171,3417.4,3417.3,4.08232]
[1732412145529,0.09222953,3417.4,3417.3,4.08232]
[1732412147526,0.09222953,3417.4,3417.3,3.7112]
[1732412148087,0.09222953,3417.4,3417.3,2.9263]
[1732412148298,0.86052953,3417.4,3417.3,2.9263]
[1732412148476,1.13339886,3417.4,3417.3,2.9263]
[1732412148671,1.16998511,3417.4,3417.3,2.9263]
[1732412148884,1.56728147,3417.4,3417.3,2.9263]
[1732412152108,1.53070174,3417.4,3417.3,2.9263]
[1732412152463,1.56727179,3417.4,3417.3,2.9263]
[1732412153384,1.13339565,3417.4,3417.3,2.9263]
[1732412153544,1.16997542,3417.4,3417.3,2.9263]
[1732412153747,1.13339565,3417.4,3417.3,2.9263]
[1732412156631,1.16997542,3417.4,3417.3,2.9263]
[1732412157307,1.13339565,3417.4,3417.3,2.9263]
[1732412157896,1.16997541,3417.4,3417.3,2.9263]
[1732412158537,4.62464606,3417.4,3417.3,2.9263]
[1732412158900,5.06132355,3417.4,3417.3,2.9263]
[1732412159732,5.02474379,3417.4,3417.3,2.9263]
[1732412159931,4.57007314,3417.4,3417.3,2.9263]
[1732412160101,4.57005897,3417.4,3417.3,2.9263]
[1732412160892,4.60663872,3417.4,3417.3,2.9263]
[1732412165983,3.89710928,3417.4,3417.3,2.9263]
[1732412166131,4.6065568,3417.4,3417.3,2.9263]
[1732412166831,4.60665532,3417.4,3417.3,2.9263]
[1732412167242,4.60677582,3417.4,3417.3,2.9263]
[1732412168372,4.57019607,3417.4,3417.3,2.9263]
[1732412168870,4.60677578,3417.4,3417.3,2.9263]
[1732412169661,3.89710924,3417.4,3417.3,2.9263]
[1732412169972,4.57052373,3417.4,3417.3,2.9263]
[1732412172000,3.80222373,3417.4,3417.3,2.9263]
[1732412172614,5.03296424,3417.4,3417.3,2.9263]
[1732412173009,2.03296424,3417.4,3417.3,2.9263]
[1732412174326,5.68028389,3417.4,3417.3,2.9263]
[1732412174538,6.51018389,3417.4,3417.3,2.9263]
[1732412174842,5.86286424,3417.4,3417.3,2.9263]
[1732412180338,7.09360475,3417.4,3417.3,2.9263]
[1732412180549,5.86286424,3417.4,3417.3,2.9263]
[1732412180745,7.09360475,3417.4,3417.3,2.9263]
[1732412182532,5.86286424,3417.4,3417.3,2.9263]
[1732412184359,6.50652592,3417.4,3417.3,2.9263]
[1732412184572,5.79653172,3417.4,3417.3,2.9263]
[1732412184724,7.73839459,3417.4,3417.3,2.9263]
[1732412185856,6.50765408,3417.4,3417.3,2.9263]
[1732412186860,7.73839459,3417.4,3417.3,2.9263]
[1732412187226,6.50765408,3417.4,3417.3,2.9263]
[1732412187427,7.73839459,3417.4,3417.3,2.9263]
[1732412188656,6.50765408,3417.4,3417.3,2.9263]
[1732412190248,7.73839459,3417.4,3417.3,2.9263]
[1732412191897,7.7384924,3417.4,3417.3,2.9263]
[1732412192199,7.73849165,3417.4,3417.3,2.9263]
[1732412193410,7.73852857,3417.4,3417.3,2.9263]
[1732412193702,7.08450518,3417.4,3417.3,2.9263]
[1732412195620,7.08451688,3417.4,3417.3,2.9263]
[1732412197519,5.85377637,3417.4,3417.3,2.9263]
[1732412197982,7.08451688,3417.4,3417.3,2.9263]
[1732412198183,5.85377637,3417.4,3417.3,2.9263]
[1732412198383,7.08451688,3417.4,3417.3,2.9263]
[1732412199408,7.08451654,3417.4,3417.3,2.9263]
[1732412200411,7.92291058,3417.4,3417.3,2.9263]
[1732412201113,7.08451654,3417.4,3417.3,2.9263]
[1732412202831,6.37324884,3417.4,3417.3,2.9263]
[1732412203131,7.08452338,3417.4,3417.3,2.9263]
[1732412203325,4.62304236,3417.4,3417.3,2.9263]
[1732412203527,2.02388287,3417.4,3417.3,2.9263]
[1732412203824,1.58617546,3417.4,3417.3,3.7246]
[1732412204027,2.02388287,3417.4,3417.3,3.7246]
[1732412204224,1.58617546,3417.4,3417.3,3.7246]
[1732412204641,0.35543495,3417.4,3417.3,3.7246]
[1732412204845,0.35543495,3417.4,3417.3,4.09706]
[1732412205051,1.23074051,3417.5,3417.3,4.09706]
[1732412205204,1.23074051,3417.5,3417.4,1.208006]
[1732412205404,1.23074051,3417.5,3417.4,4.134206]
[1732412205725,1.23074051,3417.7,3417.5,0.7983]
[1732412206040,1.23074051,3417.7,3417.6,3.7243]
[1732412206243,1.23074051,3418.0,3417.7,0.7983]
[1732412206539,1.23074051,3418.2,3417.9,0.7983]
[1732412206743,1.23074051,3418.2,3418.1,0.7983]
[1732412207545,1.23074051,3418.2,3418.1,3.7239]
[1732412207743,0.03656687,3419.2,3418.1,2.9256]
[1732412208056,1.23074051,3418.6,3418.3,0.7983]
[1732412208257,2.46148102,3418.4,3418.1,2.9256]
[1732412208547,0.7905,3418.5,3418.4,0.46381898]
[1732412208745,0.7905,3418.5,3417.2,0.7983]
[1732412208746,0.7905,3418.4,3417.2,0.7983]
[1732412208945,1.23074051,3417.3,3417.2,0.7983]
[1732412210725,2.79972983,3417.4,3417.2,0.7983]
[1732412211518,2.79972983,3417.4,3416.0,0.01464855]
[1732412211519,2.79972983,3417.4,3416.1,0.7588]
[1732412211723,0.03658014,3417.3,3416.1,0.7588]
[1732412211940,2.79972983,3417.4,3416.1,0.77345388]
[1732412214213,0.06611802,3417.3,3416.1,0.77345388]
[1732412217046,0.06611802,3417.3,3416.2,2.9268]
[1732412217257,0.10269771,3417.3,3416.3,1.19456]
[1732412217551,2.79972983,3417.0,3416.4,2.9271]
[1732412217929,0.06609132,3416.9,3416.4,2.9271]
[1732412221231,2.79972983,3416.6,3416.4,2.9271]
[1732412221432,0.82281075,3416.5,3416.4,2.9271]
[1732412223989,0.82281075,3416.5,3416.4,2.91673829]
[1732412224186,0.85939926,3416.5,3416.4,2.91673829]
[1732412224693,4.22531217,3416.5,3416.4,2.91673829]
[1732412224835,4.18872366,3416.5,3416.4,2.91673829]
[1732412225270,4.46111885,3416.5,3416.4,2.91673829]
[1732412225475,4.18872366,3416.5,3416.4,2.91673829]
[1732412226339,3.82281075,3416.5,3416.4,2.91673829]
[1732412227854,0.82281075,3416.5,3416.4,2.91673829]
[1732412228191,6.62254058,3416.5,3416.4,2.91673829]
[1732412230182,5.86574058,3416.5,3416.4,2.91673829]
[1732412232840,1.2975911,3416.5,3416.4,2.91673829]
[1732412234210,1.87312862,3416.5,3416.4,2.91673829]
[1732412234421,2.68692862,3416.5,3416.4,2.91673829]
[1732412234634,5.1113911,3416.5,3416.4,2.91673829]
[1732412234834,2.38331195,3416.5,3416.4,2.91673829]
[1732412236996,6.1014195,3416.5,3416.4,2.91673829]
[1732412238134,2.38331195,3416.5,3416.4,2.91673829]
[1732412238429,5.38331195,3416.5,3416.4,2.91673829]
[1732412238730,2.38331195,3416.5,3416.4,2.91673829]
[1732412238927,5.38331195,3416.5,3416.4,2.91673829]
[1732412239128,2.38331195,3416.5,3416.4,2.91673829]
[1732412239437,5.38331195,3416.5,3416.4,2.91673829]
[1732412239641,2.38331195,3416.5,3416.4,2.91673829]
[1732412239849,5.38331195,3416.5,3416.4,2.91673829]
[1732412240001,2.38331195,3416.5,3416.4,2.91673829]
[1732412240203,5.38331195,3416.5,3416.4,2.91673829]
[1732412240402,2.38331195,3416.5,3416.4,2.91673829]
[1732412240603,5.38331195,3416.5,3416.4,2.91673829]
[1732412240927,2.38331195,3416.5,3416.4,2.91673829]
[1732412241641,5.38331195,3416.5,3416.4,2.91673829]
[1732412241845,2.81927199,3416.5,3416.4,2.91673829]
[1732412242139,6.39598518,3416.5,3416.4,2.91673829]
[1732412242298,5.81927199,3416.5,3416.4,2.91673829]
[1732412243008,5.82001445,3416.5,3416.4,2.91673829]
[1732412246546,5.8209473,3416.5,3416.4,2.91673829]
[1732412250229,5.1113911,3416.5,3416.4,2.91673829]
[1732412250581,5.82197508,3416.5,3416.4,2.91673829]
[1732412251078,2.00817508,3416.5,3416.4,2.91673829]
[1732412251374,1.57089263,3416.5,3416.4,2.91673829]
[1732412251580,0.33931228,3416.5,3416.4,2.91673829]
[1732412251761,1.57089263,3416.5,3416.4,4.09215212]
[1732412252068,0.06601075,3416.5,3416.4,4.09215212]
[1732412252459,1.23158035,3416.7,3416.5,0.8034]
[1732412252771,1.23158035,3416.7,3416.6,2.9373]
[1732412254736,1.23158035,3416.7,3416.6,3.7407]
[1732412259337,1.29112584,3416.7,3416.6,3.7407]
[1732412266819,1.29112584,3416.7,3416.6,2.9373]
[1732412267499,2.09922584,3416.7,3416.6,2.9373]
[1732412268309,2.3717544,3416.7,3416.6,2.9373]
[1732412268786,3.0357529,3416.7,3416.6,2.9373]
[1732412269290,6.03575892,3416.7,3416.6,2.9373]
[1732412270304,6.47187488,3416.7,3416.6,2.9373]
[1732412271476,7.70345523,3416.7,3416.6,2.9373]
[1732412271676,6.47187488,3416.7,3416.6,2.9373]
[1732412271874,3.55,3416.6,3415.5,0.7974]
[1732412272108,1.23158035,3415.6,3415.5,0.7974]
[1732412272586,1.29094941,3415.6,3415.5,0.7974]
[1732412273521,1.29094941,3415.6,3414.5,0.8174]
[1732412273731,1.23158035,3414.7,3414.5,0.8174]
[1732412274330,0.05924511,3414.6,3414.5,0.8174]
[1732412276990,2.80352816,3415.0,3414.5,0.8174]
[1732412277195,0.05913728,3414.6,3414.5,0.8174]
[1732412277419,2.80352816,3415.0,3414.5,0.8174]
[1732412277610,0.05913728,3414.6,3414.5,0.8174]
[1732412277943,2.80352816,3415.0,3414.5,0.8174]
[1732412278237,0.05913728,3414.6,3414.5,0.8174]
[1732412278457,2.80352816,3415.0,3414.5,0.8174]
[1732412278595,0.05913728,3414.6,3414.5,0.8174]
[1732412278797,0.03660635,3414.9,3414.5,0.8174]
[1732412279059,0.05913728,3414.6,3414.5,0.8174]
[1732412279192,0.03660635,3414.9,3414.5,0.8174]
[1732412279394,0.05881514,3414.6,3414.5,0.8174]
[1732412279835,2.80352816,3415.0,3414.5,0.8174]
[1732412280051,0.05881514,3414.6,3414.5,0.8174]
[1732412280203,2.80352816,3414.7,3414.5,0.8174]
[1732412280407,0.05881514,3414.6,3413.9,0.7946]
[1732412280602,2.80352816,3414.4,3413.9,0.7946]
[1732412280849,2.80352816,3414.1,3413.9,0.7946]
[1732412281025,2.80352816,3414.1,3412.9,0.7656]
[1732412281338,0.05875383,3414.0,3413.0,0.78031909]
[1732412285603,0.05875383,3414.0,3413.0,0.88031879]
[1732412285803,2.80352816,3414.4,3413.0,0.88031879]
[1732412286040,0.05862158,3413.9,3413.0,0.88031879]
[1732412286355,2.80352816,3414.4,3413.0,0.88031879]
[1732412286530,0.05837788,3413.8,3413.1,2.9294]
[1732412286729,2.80352816,3414.4,3413.2,1.08473313]
[1732412287052,0.05842898,3414.3,3413.4,0.7656]
[1732412287253,0.05842898,3414.3,3413.4,0.7803211]
[1732412287413,0.05842898,3414.3,3413.5,2.9295]
[1732412287614,0.05842898,3414.3,3413.6,0.7656]
[1732412287820,0.05842898,3414.3,3413.8,0.7656]
[1732412288015,2.80352816,3414.7,3413.9,2.9292]
[1732412288233,0.05841876,3414.2,3413.9,2.9292]
[1732412288521,2.80352816,3414.7,3413.9,2.9292]
[1732412288723,2.80352816,3414.7,3414.0,0.36948]
[1732412288935,0.05845963,3414.6,3414.2,0.7656]
[1732412289146,0.05845963,3414.6,3414.3,2.9289]
[1732412289351,2.80352816,3415.0,3414.3,2.9289]
[1732412289657,0.7972,3415.2,3414.3,3.29835]
[1732412289859,0.05849028,3414.9,3414.3,3.313054]
[1732412290025,0.7972,3415.2,3414.3,3.313054]
[1732412290226,2.80352816,3416.0,3414.3,3.313054]
[1732412290227,0.05848007,3414.8,3414.5,0.8655997]
[1732412290567,8.89,3417.2,3414.5,0.8655997]
[1732412290568,2.80352816,3416.3,3414.8,0.65]
[1732412290719,2.80352816,3416.3,3414.9,2.94297346]
[1732412290919,0.05667369,3416.2,3415.0,0.7656]
[1732412291221,2.80352816,3416.3,3414.8,0.65]
[1732412291222,2.80352816,3416.3,3415.2,0.7876]
[1732412291422,2.80352816,3416.3,3415.3,2.9426735]
[1732412292163,0.7972,3416.5,3415.4,0.7876]
[1732412292366,2.92552,3418.2,3415.6,0.7876]
[1732412292367,2.80352816,3416.9,3415.6,0.7876]
[1732412292579,0.05483346,3416.4,3415.8,0.7876]
[1732412292726,0.8058,3417.0,3415.9,3.30049646]
[1732412292727,2.80352816,3416.6,3415.9,3.30049646]
[1732412293057,0.05484366,3416.5,3415.9,3.30049646]
[1732412295036,0.8058,3417.0,3416.0,0.01466464]
[1732412295270,0.05518139,3416.4,3416.1,3.7149]
[1732412295468,3.0,3417.0,3416.1,3.7149]
[1732412295671,0.05517118,3416.3,3416.1,3.7149]
[1732412295912,3.03658329,3417.0,3416.1,3.7149]
[1732412296038,0.05516098,3416.2,3416.1,3.7149]
[1732412296242,2.80352816,3416.2,3416.1,2.9273]
[1732412296542,2.85871094,3416.2,3416.1,2.9273]
[1732412302854,0.05518278,3416.2,3416.1,2.9273]
[1732412303083,3.0,3416.4,3416.1,2.9273]
[1732412303254,0.03659201,3416.3,3416.1,2.9273]
[1732412303456,0.09191977,3416.3,3416.1,2.9273]
[1732412304241,0.05532776,3416.3,3416.1,2.9273]
[1732412305043,0.09192036,3416.3,3416.1,2.9273]
[1732412306584,0.05532776,3416.3,3416.1,2.9273]
[1732412306744,0.78206763,3416.3,3416.1,2.9273]
[1732412307469,0.05532776,3416.3,3416.1,2.9273]
[1732412308369,0.55,3416.2,3416.1,2.9273]
[1732412308683,1.35821755,3416.2,3416.1,2.9273]
[1732412310999,7.16174571,3416.2,3416.1,2.9273]
[1732412311749,7.90419273,3416.2,3416.1,2.9273]
[1732412312178,8.17584441,3416.2,3416.1,2.9273]
[1732412312367,8.99342885,3416.2,3416.1,2.9273]
[1732412313089,7.97933015,3416.2,3416.1,2.9273]
[1732412314784,8.25135753,3416.2,3416.1,2.9273]
[1732412314989,7.97933015,3416.2,3416.1,2.9273]
[1732412315358,8.25151639,3416.2,3416.1,2.9273]
[1732412315691,8.25154084,3416.2,3416.1,2.9273]
[1732412316010,7.49864084,3416.2,3416.1,2.9273]
[1732412316183,5.85884571,3416.2,3416.1,2.9273]
[1732412316395,5.85884571,3416.2,3416.1,3.7429]
[1732412316576,0.05531755,3416.2,3416.1,3.7429]
[1732412316895,2.80352816,3416.5,3416.1,3.7429]
[1732412317104,0.05508272,3416.2,3416.1,3.7429]
[1732412317305,2.80352816,3416.5,3416.1,3.7429]
[1732412317512,0.05508272,3416.2,3416.1,3.7429]
[1732412317670,2.80352816,3416.5,3416.1,3.7429]
[1732412318006,3.0,3416.4,3416.1,3.7429]
[1732412318202,3.0551673,3416.4,3416.1,3.7429]
[1732412318705,0.0551673,3416.4,3416.1,3.7429]
[1732412318910,0.0551673,3416.4,3416.1,4.11719]
[1732412319110,2.80352816,3416.8,3416.1,4.11719]
[1732412319600,0.05523,3416.7,3416.1,4.11719]
[1732412319975,2.80352816,3416.4,3416.1,3.7429]
[1732412320275,0.0552251,3416.3,3416.1,3.7429]
[1732412321200,2.80352816,3416.8,3416.1,3.7429]
[1732412321415,0.05523156,3416.2,3416.1,3.7429]
[1732412321707,2.80352816,3416.8,3416.1,3.7429]
[1732412321914,0.05523156,3416.2,3416.1,3.7429]
[1732412322084,2.80352816,3416.8,3416.1,3.7429]
[1732412322285,0.05523156,3416.2,3416.1,3.7429]
[1732412322485,2.80352816,3416.8,3416.1,3.7429]
[1732412322706,0.05523156,3416.2,3416.1,3.7429]
[1732412322911,2.80352816,3416.8,3416.1,4.11719]
[1732412323110,0.05523156,3416.2,3416.1,4.11719]
[1732412323410,2.80352816,3416.9,3416.1,4.11719]
[1732412323613,0.05523156,3416.2,3416.1,3.7429]